bitfinex-derivatives/quotes_BTCF0:USTF0_20250308
["timestamp","ask_amount","ask_price","bid_price","bid_amount"]
[1741411478913,0.2295,86159.0,86158.0,0.1160867]
[1741411480415,0.2295,86159.0,86158.0,0.15136943]
[1741411480814,0.00026704,86160.0,86159.0,0.1160853]
[1741411481011,0.00026704,86160.0,86159.0,0.2388853]
[1741411481721,0.1207,86172.0,86171.0,0.1160692]
[1741411482020,0.1207,86172.0,86171.0,0.05822962]
[1741411482421,0.1207,86172.0,86171.0,0.09295719]
[1741411482815,0.1207,86172.0,86171.0,0.21585037]
[1741411483017,0.2418,86172.0,86171.0,0.21585037]
[1741411483423,0.2438,86172.0,86171.0,0.21585037]
[1741411483915,0.2468,86172.0,86171.0,0.21585037]
[1741411485111,0.2468,86172.0,86171.0,0.15762075]
[1741411485506,0.0017413,86177.0,86171.0,0.51842075]
[1741411485713,0.0017413,86177.0,86176.0,0.1160624]
[1741411486118,0.0017413,86177.0,86176.0,0.11614458]
[1741411486319,0.0017413,86177.0,86176.0,0.1160624]
[1741411486506,0.1211,86183.0,86182.0,0.1160543]
[1741411486712,0.1211,86183.0,86182.0,0.11614748]
[1741411487509,0.1211,86183.0,86182.0,0.35044748]
[1741411488017,0.1241,86183.0,86182.0,0.2926079]
[1741411488420,0.003,86183.0,86182.0,0.29251472]
[1741411489119,0.3608,86213.0,86190.0,0.1160436]
[1741411489321,0.0001741,86191.0,86190.0,0.11613678]
[1741411489916,0.1162163,86191.0,86190.0,0.11613678]
[1741411490625,0.3507163,86191.0,86190.0,9.318e-05]
[1741411491013,0.3517163,86191.0,86190.0,9.318e-05]
[1741411491214,0.3517163,86191.0,86190.0,0.1160436]
[1741411491613,0.3517163,86191.0,86190.0,0.15158783]
[1741411493223,0.2370163,86191.0,86190.0,0.15158783]
[1741411493615,0.3603163,86191.0,86190.0,0.15158783]
[1741411494215,0.3603163,86191.0,86190.0,0.09374825]
[1741411494415,0.2442741,86191.0,86190.0,0.09374825]
[1741411494820,0.3603163,86191.0,86190.0,0.03554423]
[1741411495020,0.3603163,86191.0,86188.0,0.1160456]
[1741411495222,0.2442741,86191.0,86190.0,0.2378436]
[1741411495420,0.2442741,86191.0,86190.0,0.27401122]
[1741411496217,0.2432741,86191.0,86190.0,0.27401122]
[1741411496528,0.2422741,86191.0,86190.0,0.27401122]
[1741411496825,0.2432741,86191.0,86190.0,0.27401122]
[1741411497215,0.2432741,86191.0,86190.0,0.21617164]
[1741411497926,0.1199741,86191.0,86190.0,0.21617164]
[1741411500323,0.1199741,86191.0,86190.0,0.15833206]
[1741411500532,0.1189741,86191.0,86190.0,0.15833206]
[1741411503227,0.1189741,86191.0,86190.0,0.10149248]
[1741411503529,0.1189741,86191.0,86190.0,0.29499248]
[1741411506221,0.1189741,86191.0,86190.0,0.2371529]
[1741411506432,0.1189741,86191.0,86190.0,0.23066762]
[1741411506639,0.1189741,86191.0,86190.0,0.34671122]
[1741411508430,0.1189741,86191.0,86190.0,0.82991122]
[1741411509423,0.0537651,86191.0,86190.0,0.77207164]
[1741411509835,0.1026961,86194.0,86193.0,0.1160395]
[1741411510136,0.1026961,86194.0,86193.0,0.1918795]
[1741411510538,0.02299623,86194.0,86193.0,0.1918795]
[1741411510735,0.02299623,86194.0,86193.0,0.07584]
[1741411511036,0.13903443,86194.0,86193.0,0.1918795]
[1741411511821,0.13903443,86194.0,86193.0,0.07584]
[1741411512022,0.13903443,86194.0,86193.0,0.07684]
[1741411512437,0.13903443,86194.0,86193.0,0.13603992]
[1741411512639,0.13903443,86194.0,86193.0,0.02000042]
[1741411512827,0.13903443,86194.0,86193.0,0.13603992]
[1741411513139,0.13903443,86194.0,86193.0,0.02000042]
[1741411513338,0.13903443,86194.0,86193.0,0.13603992]
[1741411513733,0.13903443,86194.0,86193.0,0.02000042]
[1741411514031,0.02299623,86194.0,86193.0,0.13603992]
[1741411514424,0.02295623,86194.0,86193.0,0.13603992]
[1741411514641,0.02295623,86194.0,86193.0,0.24853992]
[1741411515532,0.02295623,86194.0,86193.0,0.19170034]
[1741411515940,0.02295623,86194.0,86193.0,0.19270034]
[1741411516535,0.02295623,86194.0,86193.0,0.19170034]
[1741411516837,0.02295623,86194.0,86193.0,0.19270034]
[1741411518436,0.02295623,86194.0,86193.0,0.1145]
[1741411519030,0.16303591,86200.0,86199.0,0.1160315]
[1741411519342,0.09782656,86200.0,86199.0,0.1160315]
[1741411519525,0.09782656,86200.0,86199.0,0.19787642]
[1741411519730,0.21385666,86200.0,86199.0,0.08184492]
[1741411519930,0.1486473,86200.0,86199.0,0.08184492]
[1741411520342,0.1486473,86200.0,86199.0,0.001]
[1741411520953,0.1150315,86199.0,86198.0,0.1160318]
[1741411521644,0.1140315,86199.0,86198.0,0.05819222]
[1741411522236,0.1140315,86199.0,86198.0,0.05919222]
[1741411522834,0.1130315,86199.0,86198.0,0.05919222]
[1741411523447,0.1130315,86199.0,86198.0,0.14103714]
[1741411523641,0.1130315,86199.0,86198.0,0.08284492]
[1741411523944,0.01883996,86199.0,86198.0,0.08384492]
[1741411524249,0.1160315,86199.0,86198.0,0.19987772]
[1741411524443,0.1160315,86199.0,86198.0,0.08384492]
[1741411524642,0.1160315,86199.0,86198.0,0.02600534]
[1741411524842,0.1160315,86199.0,86198.0,0.14203804]
[1741411525747,0.1160315,86199.0,86198.0,0.02600534]
[1741411527347,0.0326172,86200.0,86198.0,0.02600534]
[1741411527549,0.0326172,86200.0,86196.0,0.08420026]
[1741411527741,0.1160342,86198.0,86197.0,0.1160338]
[1741411528651,0.1150342,86198.0,86197.0,0.2338338]
[1741411528847,0.1150342,86198.0,86197.0,0.1178]
[1741411529348,0.04982484,86198.0,86197.0,0.1178]
[1741411529551,0.04982484,86198.0,86197.0,0.1188]
[1741411530253,0.1160342,86198.0,86197.0,0.1188]
[1741411530747,0.1160342,86198.0,86197.0,0.001]
[1741411531056,0.06091468,86198.0,86197.0,0.001]
[1741411533537,0.06091468,86198.0,86195.0,0.06696042]
[1741411533746,0.1160342,86197.0,86196.0,0.1204]
[1741411534351,0.1160342,86197.0,86196.0,0.2392]
[1741411535554,0.06091468,86198.0,86196.0,0.2392]
[1741411535753,0.1160342,86197.0,86196.0,0.2402]
[1741411536453,0.1160342,86197.0,86196.0,0.1198]
[1741411536652,0.1160342,86197.0,86196.0,0.001]
[1741411537359,0.1160382,86194.0,86193.0,0.2447]
[1741411538249,0.0580182,86196.0,86192.0,0.3608]
[1741411538457,0.1160422,86191.0,86190.0,0.00854685]
[1741411538652,0.0580204,86192.0,86188.0,0.13109634]
[1741411538957,0.1160449,86189.0,86188.0,0.13109634]
[1741411539253,0.1160449,86189.0,86188.0,0.13995532]
[1741411539444,0.05082991,86189.0,86188.0,0.13995532]
[1741411539640,0.05082991,86189.0,86188.0,0.08211574]
[1741411539843,0.1160476,86188.0,86187.0,0.1160472]
[1741411540054,0.1160476,86188.0,86187.0,0.2318472]
[1741411540244,0.1160476,86188.0,86187.0,0.1158]
[1741411541945,0.0580244,86187.0,86186.0,0.0085225]
[1741411542251,0.116053,86183.0,86182.0,0.7320141]
[1741411542447,0.116053,86183.0,86182.0,0.7304541]
[1741411542654,0.116053,86183.0,86182.0,0.67261452]
[1741411543658,0.03112026,86184.0,86182.0,0.67261452]
[1741411543958,0.116053,86183.0,86182.0,0.68150519]
[1741411544953,0.116053,86183.0,86182.0,0.79755949]
[1741411545144,0.116053,86183.0,86182.0,0.91595949]
[1741411545552,4e-05,86190.0,86183.0,0.116053]
[1741411545754,4e-05,86194.0,86190.0,0.05820402]
[1741411546474,0.1160422,86191.0,86190.0,0.05820402]
[1741411546665,0.1160422,86191.0,86190.0,0.29910402]
[1741411546955,0.1160422,86191.0,86190.0,0.2409]
[1741411548851,0.1160422,86191.0,86190.0,0.18306042]
[1741411549553,0.05082947,86191.0,86190.0,0.18306042]
[1741411550260,0.05082947,86191.0,86190.0,0.21375378]
[1741411550661,4e-05,86192.0,86191.0,0.1160422]
[1741411550972,4e-05,86192.0,86191.0,0.1193]
[1741411551161,0.1160809,86192.0,86191.0,0.1193]
[1741411551464,0.2333409,86192.0,86191.0,0.1193]
[1741411551971,0.2333409,86192.0,86191.0,0.17750262]
[1741411552156,0.2333409,86192.0,86191.0,0.30090262]
[1741411553564,0.2333409,86192.0,86191.0,0.18486042]
[1741411554166,0.2333409,86192.0,86191.0,0.30090262]
[1741411554897,0.1173,86192.0,86191.0,0.24306304]
[1741411555967,0.2333409,86192.0,86191.0,0.24306304]
[1741411556566,0.1160422,86191.0,86190.0,0.0758]
[1741411556771,0.1173,86192.0,86190.0,0.0758]
[1741411556958,0.2354422,86191.0,86190.0,0.0758]
[1741411557864,0.03969545,86191.0,86189.0,0.36084]
[1741411558066,0.2346436,86190.0,86189.0,0.48294]
[1741411558767,0.2346436,86190.0,86189.0,0.5989849]
[1741411559166,0.14044731,86190.0,86189.0,0.5989849]
[1741411559561,0.14044731,86190.0,86189.0,0.36084]
[1741411560062,0.14044731,86190.0,86189.0,0.4768849]
[1741411560264,0.14044731,86190.0,86189.0,0.6010849]
[1741411560868,0.14044731,86190.0,86189.0,0.54324532]
[1741411561262,0.14044731,86190.0,86189.0,0.42720042]
[1741411561465,0.14044731,86190.0,86189.0,0.30300042]
[1741411562179,0.25894731,86190.0,86189.0,0.54024532]
[1741411562564,0.14290371,86190.0,86189.0,0.66124532]
[1741411562973,0.25894731,86190.0,86189.0,0.66124532]
[1741411563574,0.25894731,86190.0,86189.0,0.42420042]
[1741411563864,0.25894731,86190.0,86189.0,0.54930042]
[1741411564077,0.25894731,86190.0,86189.0,0.1212]
[1741411565562,0.2345436,86190.0,86189.0,0.1212]
[1741411565779,0.17924199,86190.0,86189.0,0.1212]
[1741411566976,0.1160436,86190.0,86189.0,0.06336042]
[1741411567580,0.1160449,86189.0,86188.0,4e-05]
[1741411568470,8e-05,86191.0,86182.0,0.13039067]
[1741411568675,0.116053,86183.0,86182.0,0.13043067]
[1741411568876,0.116053,86183.0,86182.0,0.25683067]
[1741411570083,0.240453,86183.0,86182.0,4e-05]
[1741411573094,0.1160557,86181.0,86180.0,0.06478042]
[1741411573674,0.1160557,86181.0,86180.0,0.07368859]
[1741411574683,0.182427,86183.0,86180.0,0.07368859]
[1741411574983,0.1160557,86181.0,86180.0,0.07368859]
[1741411575484,0.1160557,86181.0,86180.0,0.18974559]
[1741411575784,0.1244,86183.0,86182.0,0.1160543]
[1741411575976,0.3608,86185.0,86181.0,0.1272]
[1741411576175,0.06233262,86185.0,86184.0,0.1160517]
[1741411576378,0.1160481,86187.0,86186.0,0.1160463]
[1741411576683,0.1160481,86187.0,86186.0,0.2433463]
[1741411577169,0.2311481,86187.0,86186.0,0.2433463]
[1741411577372,0.1151,86187.0,86186.0,0.2433463]
[1741411577772,0.04988806,86187.0,86186.0,0.2433463]
[1741411577983,0.16593616,86187.0,86186.0,0.2433463]
[1741411578180,4e-05,86188.0,86187.0,0.1160476]
[1741411579188,4e-05,86188.0,86187.0,0.05820802]
[1741411579380,0.1160863,86188.0,86187.0,0.05820802]
[1741411580785,4e-05,86188.0,86187.0,0.05820802]
[1741411582395,4e-05,86188.0,86187.0,0.1160476]
[1741411582784,0.1224,86189.0,86187.0,0.1160476]
[1741411582988,0.1224,86189.0,86188.0,0.1160463]
[1741411583184,4e-05,86191.0,86190.0,0.1160436]
[1741411583388,0.1166,86193.0,86188.0,0.4188226]
[1741411583580,0.11664,86193.0,86192.0,0.1160409]
[1741411584088,0.05143108,86193.0,86192.0,0.1160409]
[1741411584291,4e-05,86193.0,86192.0,0.1160409]
[1741411585298,4e-05,86193.0,86192.0,0.05820132]
[1741411588293,4e-05,86193.0,86191.0,0.1171]
[1741411588889,4e-05,86193.0,86192.0,0.1160409]
[1741411589490,0.11574,86193.0,86192.0,0.1160409]
[1741411590895,0.11574,86193.0,86192.0,0.2339409]
[1741411591199,0.11574,86193.0,86192.0,0.17610132]
[1741411591789,4e-05,86193.0,86192.0,0.17610132]
[1741411593703,0.27561214,86199.0,86198.0,0.1160328]
[1741411594201,0.21040325,86199.0,86198.0,0.1160328]
[1741411594401,0.21040325,86199.0,86198.0,0.05819322]
[1741411594704,0.21040325,86199.0,86198.0,0.30319322]
[1741411595310,0.21040325,86199.0,86198.0,0.245]
[1741411595620,0.32720325,86199.0,86198.0,0.245]
[1741411596596,0.32720325,86199.0,86198.0,0.1194]
[1741411597397,0.32720325,86199.0,86198.0,0.06156042]
[1741411600306,0.32720325,86199.0,86198.0,0.00372084]
[1741411601005,0.1160342,86197.0,86196.0,0.1276]
[1741411601813,0.32720325,86199.0,86196.0,0.1276]
[1741411602010,0.1160342,86197.0,86194.0,0.03835566]
[1741411602310,0.1160409,86192.0,86191.0,0.1160421]
[1741411602512,0.0580195,86194.0,86190.0,0.1253]
[1741411602698,0.1160422,86191.0,86190.0,0.1253]
[1741411603103,0.1160436,86190.0,86189.0,0.03896739]
[1741411603306,0.2431436,86190.0,86186.0,0.1253]
[1741411603517,0.2431436,86190.0,86188.0,0.1274]
[1741411603518,0.1740673,86189.0,86188.0,0.1274]
[1741411605615,0.1740673,86189.0,86188.0,0.1652701]
[1741411606305,0.1740673,86189.0,86188.0,0.0378701]
[1741411606512,0.116049,86186.0,86185.0,0.1235]
[1741411607712,0.116049,86186.0,86185.0,0.2441]
[1741411609515,0.116049,86186.0,86185.0,0.18626042]
[1741411610711,0.0580236,86188.0,86185.0,0.18626042]
[1741411611021,0.116049,86186.0,86185.0,0.18626042]
[1741411611409,0.0580236,86188.0,86185.0,0.30231072]
[1741411611612,0.116049,86186.0,86185.0,0.30231072]
[1741411612617,0.116049,86186.0,86185.0,0.24447114]
[1741411613218,0.0580236,86188.0,86187.0,0.1160476]
[1741411613415,4e-05,86191.0,86189.0,0.3084449]
[1741411613719,4e-05,86191.0,86190.0,0.3622436]
[1741411614317,0.4768392,86194.0,86190.0,0.2462]
[1741411614517,0.4768392,86194.0,86193.0,0.1160395]
[1741411614911,4e-05,86193.0,86191.0,0.0580206]
[1741411615111,0.1160795,86193.0,86192.0,0.2369409]
[1741411615519,0.1160795,86193.0,86192.0,0.17910132]
[1741411615812,0.1160795,86193.0,86192.0,0.29840132]
[1741411617013,0.2323795,86193.0,86192.0,0.29840132]
[1741411618423,0.11634,86193.0,86192.0,0.29840132]
[1741411618725,0.11634,86193.0,86192.0,0.24056174]
[1741411620018,0.03663963,86193.0,86192.0,0.24056174]
[1741411621629,0.03663963,86193.0,86192.0,0.18272216]
[1741411624524,0.03663963,86193.0,86183.0,0.25248406]
[1741411624525,0.03663963,86193.0,86184.0,4e-05]
[1741411624724,0.2412,86192.0,86180.0,0.20753979]
[1741411624927,0.0580224,86189.0,86183.0,0.116053]
[1741411625231,0.1225,86188.0,86183.0,0.116053]
[1741411625531,0.1160493,86186.0,86183.0,0.16323675]
[1741411625729,0.1160517,86184.0,86183.0,0.04718375]
[1741411625917,0.1160557,86181.0,86180.0,0.1160557]
[1741411626735,0.2397557,86181.0,86180.0,0.1160557]
[1741411627247,0.2397557,86181.0,86180.0,0.16334936]
[1741411627632,0.2397557,86181.0,86178.0,0.36836691]
[1741411627929,0.1237,86181.0,86178.0,0.31033731]
[1741411628135,0.1160584,86179.0,86178.0,0.31033731]
[1741411630736,0.1160584,86179.0,86178.0,0.25249773]
[1741411631641,0.1160584,86179.0,86178.0,0.00885464]
[1741411631835,0.1160597,86178.0,86177.0,0.7318]
[1741411632135,0.2352597,86178.0,86177.0,0.73918382]
[1741411633745,0.2352597,86178.0,86177.0,0.68134424]
[1741411635135,0.1700356,86178.0,86177.0,0.68134424]
[1741411636438,0.09031616,86178.0,86177.0,0.68134424]
[1741411636631,0.20637586,86178.0,86177.0,0.00890382]
[1741411636837,0.1160732,86168.0,86149.0,0.7883691]
[1741411637037,0.4768732,86168.0,86164.0,4e-05]
[1741411637433,0.4768732,86168.0,86167.0,0.01053398]
[1741411637639,0.5983732,86168.0,86167.0,0.01053398]
[1741411637840,0.5983732,86168.0,86167.0,0.00879338]
[1741411638035,0.1160813,86162.0,86161.0,4e-05]
[1741411638236,0.1160813,86162.0,86161.0,0.0088099]
[1741411638444,0.52401972,86162.0,86161.0,0.0087699]
[1741411638636,0.116084,86160.0,86159.0,0.0001741]
[1741411639235,0.240684,86160.0,86159.0,0.0001741]
[1741411639636,0.355984,86160.0,86159.0,0.0001741]
[1741411639842,0.1160975,86150.0,86149.0,0.67252042]
[1741411640145,0.4768975,86150.0,86149.0,0.67252042]
[1741411641046,0.7172975,86150.0,86149.0,0.67252042]
[1741411642834,0.7172975,86150.0,86149.0,0.62319169]
[1741411643638,0.3564975,86150.0,86149.0,0.62319169]
[1741411645846,0.3564975,86150.0,86149.0,0.56535211]
[1741411647548,0.2404,86150.0,86141.0,0.0001741]
[1741411647751,0.1161082,86142.0,86141.0,0.0001741]
[1741411647944,0.1161082,86142.0,86141.0,0.1280741]
[1741411648551,0.4806082,86142.0,86141.0,0.1280741]
[1741411649044,0.4806082,86142.0,86130.0,4e-05]
[1741411649045,0.05085951,86141.0,86130.0,0.13957196]
[1741411649245,0.116119,86134.0,86131.0,0.23944]
[1741411650350,0.356519,86134.0,86131.0,0.23944]
[1741411650749,0.356519,86134.0,86133.0,0.36964959]
[1741411651151,0.356519,86134.0,86133.0,0.00884959]
[1741411651352,0.1161217,86132.0,86131.0,0.23944]
[1741411652058,0.1161217,86132.0,86131.0,0.18160042]
[1741411652256,0.1161217,86132.0,86131.0,0.30110042]
[1741411655058,0.0001741,86140.0,86131.0,0.25212132]
[1741411655261,0.1161198,86136.0,86135.0,0.1161158]
[1741411655560,0.0001741,86140.0,86135.0,0.2463]
[1741411655751,0.0001741,86140.0,86139.0,0.1161123]
[1741411656160,0.1233741,86140.0,86139.0,0.3624123]
[1741411656371,0.239485,86140.0,86139.0,0.2463]
[1741411656758,0.239485,86140.0,86139.0,0.3624123]
[1741411657262,0.239485,86140.0,86139.0,0.2463]
[1741411657872,0.239485,86140.0,86139.0,0.3624123]
[1741411658167,0.239485,86140.0,86139.0,0.30457272]
[1741411660565,0.1233741,86140.0,86139.0,0.30457272]
[1741411661167,0.1233741,86140.0,86139.0,0.24673314]
[1741411664072,0.1233741,86140.0,86139.0,0.18889356]
[1741411667076,0.1233741,86140.0,86139.0,0.13105398]
[1741411668569,0.1232,86140.0,86139.0,0.13105398]
[1741411668767,0.05812527,86140.0,86139.0,0.13105398]
[1741411669274,0.18182527,86140.0,86139.0,0.13105398]
[1741411669481,0.21818756,86140.0,86139.0,0.13105398]
[1741411670388,0.21818756,86140.0,86139.0,0.0732144]
[1741411671883,0.21818756,86140.0,86139.0,0.15504622]
[1741411672984,0.10207666,86140.0,86139.0,0.15504622]
[1741411673183,0.10207666,86140.0,86139.0,0.08183182]
[1741411673384,0.10207666,86140.0,86139.0,0.19794412]
[1741411675282,0.0001741,86148.0,86147.0,0.1161015]
[1741411675882,0.0001741,86148.0,86147.0,0.19793332]
[1741411676178,0.0001741,86148.0,86147.0,0.14009374]
[1741411677381,0.1279,86162.0,86147.0,0.14009374]
[1741411677682,0.1279,86162.0,86151.0,0.1160961]
[1741411677883,0.1279,86162.0,86148.0,0.08183182]
[1741411678085,0.1279,86162.0,86161.0,0.1160826]
[1741411678282,0.1279,86162.0,86161.0,0.19791442]
[1741411678588,0.2439813,86162.0,86161.0,0.19791442]
[1741411679287,0.2439813,86162.0,86161.0,0.14007484]
[1741411679485,0.2439813,86162.0,86161.0,0.08183182]
[1741411680386,0.2449813,86162.0,86161.0,0.08183182]
[1741411680791,0.3618813,86162.0,86161.0,0.08183182]
[1741411681678,0.116084,86160.0,86159.0,0.08183182]
[1741411681879,0.116084,86160.0,86159.0,0.19791712]
[1741411682182,0.116084,86160.0,86159.0,0.08183182]
[1741411682385,0.239284,86160.0,86158.0,0.14007804]
[1741411682588,0.2435853,86159.0,86158.0,0.14007804]
[1741411683184,0.2435853,86159.0,86158.0,0.1160858]
[1741411683392,0.1275,86159.0,86158.0,0.1160858]
[1741411683792,0.2507,86159.0,86158.0,0.2409858]
[1741411684288,0.3608,86166.0,86158.0,0.2409858]
[1741411684483,0.1275,86161.0,86160.0,0.116084]
[1741411684990,0.1277,86165.0,86158.0,0.2409858]
[1741411685191,0.1277,86165.0,86164.0,0.1160786]
[1741411685376,0.1277,86165.0,86164.0,0.05823902]
[1741411685694,0.29556582,86166.0,86165.0,0.1160772]
[1741411686198,0.1277,86169.0,86168.0,0.1160732]
[1741411686491,0.2552,86169.0,86168.0,0.1160732]
[1741411686884,0.17547897,86169.0,86168.0,0.1160732]
[1741411687283,0.08126673,86169.0,86168.0,0.1160732]
[1741411687583,0.08426673,86169.0,86168.0,0.2337732]
[1741411688091,0.08426673,86169.0,86168.0,0.3094932]
[1741411688291,0.08426673,86169.0,86168.0,0.25168104]
[1741411688688,0.20033863,86169.0,86168.0,0.07572]
[1741411688889,0.20233863,86169.0,86168.0,0.07572]
[1741411690683,0.08626673,86169.0,86167.0,4e-05]
[1741411690895,0.1160732,86168.0,86167.0,4e-05]
[1741411691091,0.1160732,86168.0,86167.0,0.1161145]
[1741411691391,0.1160732,86168.0,86165.0,0.17500454]
[1741411691392,0.1160759,86166.0,86165.0,0.17500454]
[1741411692093,0.1192,86167.0,86166.0,0.1160759]
[1741411692491,0.2352745,86167.0,86166.0,0.2338759]
[1741411692689,0.3530745,86167.0,86166.0,0.2338759]
[1741411693189,0.237,86167.0,86166.0,0.2338759]
[1741411693391,0.239,86167.0,86166.0,0.2338759]
[1741411694398,0.239,86167.0,86166.0,0.29986374]
[1741411694399,0.1212,86167.0,86166.0,0.29986374]
[1741411694692,0.1212,86167.0,86166.0,0.42836374]
[1741411694884,0.002,86167.0,86166.0,0.42836374]
[1741411695092,0.004,86167.0,86166.0,0.42836374]
[1741411695696,0.1252,86174.0,86166.0,0.3701]
[1741411695888,0.1252,86174.0,86173.0,0.1160665]
[1741411696791,0.1252,86174.0,86173.0,0.17462887]
[1741411696989,0.1272,86174.0,86173.0,0.17462887]
[1741411697189,0.1312,86174.0,86173.0,0.17462887]
[1741411697384,0.1312,86174.0,86173.0,0.11681671]
[1741411697586,0.1312,86174.0,86173.0,0.36481671]
[1741411697900,0.2472651,86174.0,86173.0,0.36481671]
[1741411699102,0.2452651,86174.0,86173.0,0.36481671]
[1741411699403,0.2472651,86174.0,86173.0,0.30656237]
[1741411699618,0.2432651,86174.0,86173.0,0.30756237]
[1741411699800,0.2432651,86174.0,86173.0,0.42362887]
[1741411699994,0.2412651,86174.0,86173.0,0.002]
[1741411700495,0.1160745,86167.0,86166.0,0.06528784]
[1741411701802,0.1160759,86166.0,86165.0,0.17304158]
[1741411702002,0.3548759,86166.0,86165.0,0.17304158]
[1741411702397,0.3538759,86166.0,86165.0,0.17304158]
[1741411702597,0.2388,86166.0,86165.0,0.17304158]
[1741411702793,0.2388,86166.0,86165.0,0.29864158]
[1741411703292,0.2378,86166.0,86165.0,0.29964158]
[1741411703496,0.2378,86166.0,86165.0,0.36562942]
[1741411703803,0.3538759,86166.0,86165.0,0.36562942]
[1741411704203,0.2378,86166.0,86165.0,0.36562942]
[1741411705202,0.15807828,86166.0,86165.0,0.36562942]
[1741411705403,0.15807828,86166.0,86165.0,0.42370179]
[1741411705598,0.15807828,86166.0,86165.0,0.78450179]
[1741411705793,0.09285142,86166.0,86165.0,0.78450179]
[1741411706504,0.09285142,86166.0,86165.0,0.72668963]
[1741411707206,0.20892732,86166.0,86165.0,0.72668963]
[1741411709599,0.20892732,86166.0,86165.0,0.30807747]
[1741411709800,0.20892732,86166.0,86165.0,0.66887747]
[1741411709994,0.20892732,86166.0,86165.0,0.78495467]
[1741411710602,0.09285142,86166.0,86165.0,0.78495467]
[1741411710808,0.1238,86168.0,86167.0,0.1160745]
[1741411712207,0.1160759,86166.0,86165.0,0.66943747]
[1741411712407,0.1160759,86166.0,86165.0,0.66787747]
[1741411712613,0.2398742,86168.0,86167.0,0.1160745]
[1741411713514,0.16015094,86168.0,86167.0,0.1160745]
[1741411714215,0.16015094,86168.0,86167.0,0.3645745]
[1741411715004,0.08042756,86168.0,86167.0,0.3645745]
[1741411715408,0.08042756,86168.0,86167.0,0.2485]
[1741411715608,0.08042756,86168.0,86167.0,0.19068784]
[1741411715809,0.03705053,86172.0,86167.0,0.1296]
[1741411716105,0.1160742,86168.0,86167.0,0.1296]
[1741411716310,0.1160742,86168.0,86167.0,0.2456745]
[1741411716913,0.1160742,86168.0,86167.0,0.1160745]
[1741411717209,0.1160745,86167.0,86166.0,4e-05]
[1741411717509,0.1160745,86167.0,86157.0,0.1160873]
[1741411717510,0.1160867,86158.0,86157.0,0.1160873]
[1741411717712,0.0580412,86162.0,86155.0,0.46545109]
[1741411717915,0.1160894,86156.0,86155.0,0.46393109]
[1741411718315,0.3688894,86156.0,86155.0,0.46393109]
[1741411718709,0.3688894,86156.0,86155.0,0.40611893]
[1741411719216,0.3688894,86156.0,86155.0,0.30035848]
[1741411719715,0.1160907,86155.0,86154.0,0.1182]
[1741411720109,0.3688907,86155.0,86154.0,0.1182]
[1741411720808,0.42716179,86155.0,86154.0,0.1182]
[1741411721710,0.42716179,86155.0,86154.0,0.06038784]
[1741411721904,0.1160921,86154.0,86153.0,0.0001741]
[1741411722308,0.3661921,86154.0,86153.0,0.0001741]
[1741411724720,0.2501,86154.0,86149.0,0.00096844]
[1741411725018,0.1160961,86151.0,86150.0,0.1218]
[1741411725817,0.05085319,86151.0,86150.0,0.1218]
[1741411727014,0.05085319,86151.0,86150.0,0.2424]
[1741411727822,0.05085319,86151.0,86150.0,0.18458784]
[1741411729605,0.05085319,86151.0,86150.0,0.1206]
[1741411730822,0.3081466,86154.0,86146.0,0.2322049]
[1741411730823,0.1160975,86150.0,86149.0,0.05828584]
[1741411731117,0.2450975,86150.0,86149.0,0.05828584]
[1741411733821,0.1161002,86148.0,86147.0,0.18808784]
[1741411736928,0.1161002,86148.0,86147.0,0.13027568]
[1741411739924,0.1161002,86148.0,86147.0,0.07246352]
[1741411740931,0.2450975,86150.0,86147.0,0.07246352]
[1741411740932,0.129,86150.0,86147.0,0.07246352]
[1741411741230,0.1161002,86148.0,86147.0,0.18856422]
[1741411741614,0.2339002,86148.0,86147.0,0.18856422]
[1741411742938,0.2339002,86148.0,86147.0,0.13075206]
[1741411744039,0.2339002,86148.0,86147.0,0.01465136]
[1741411744235,0.1161055,86144.0,86143.0,0.7322]
[1741411744442,0.1161055,86144.0,86143.0,0.73064]
[1741411745131,0.2419055,86144.0,86143.0,0.73064]
[1741411745330,0.1258,86144.0,86143.0,0.73064]
[1741411745833,0.2419055,86144.0,86143.0,0.73064]
[1741411746035,0.2419055,86144.0,86143.0,0.67282784]
[1741411746228,0.2419055,86144.0,86143.0,0.79342784]
[1741411747644,0.2419055,86144.0,86143.0,0.67282784]
[1741411749135,0.2419055,86144.0,86143.0,0.61501568]
[1741411749331,0.2419055,86144.0,86143.0,0.73561568]
[1741411750643,0.3669055,86144.0,86143.0,0.1206]
[1741411752036,0.3669055,86144.0,86143.0,0.06278784]
[1741411752240,0.1161069,86143.0,86142.0,0.1207741]
[1741411752640,0.3700069,86143.0,86142.0,0.1207741]
[1741411753466,0.2539,86143.0,86142.0,0.1207741]
[1741411753842,0.3700069,86143.0,86142.0,0.1207741]
[1741411755151,0.3700069,86143.0,86142.0,0.06296194]
[1741411755348,0.3700069,86143.0,86142.0,0.18446194]
[1741411757949,0.1298,86143.0,86142.0,0.30057014]
[1741411758241,0.1298,86143.0,86142.0,0.24275798]
[1741411758847,0.2459069,86143.0,86142.0,0.31904978]
[1741411759054,0.2459069,86143.0,86142.0,0.12664978]
[1741411760648,0.1298,86143.0,86142.0,0.24275798]
[1741411761247,0.1298,86143.0,86142.0,0.18494582]
[1741411763559,0.05005647,86143.0,86142.0,0.18494582]
[1741411764249,0.16616337,86143.0,86142.0,0.12713366]
[1741411764448,0.05005647,86143.0,86142.0,0.12713366]
[1741411764759,0.16616337,86143.0,86142.0,0.1161082]
[1741411764951,0.28386337,86143.0,86142.0,0.1161082]
[1741411767259,0.28386337,86143.0,86142.0,0.05829604]
[1741411767453,0.1161082,86142.0,86141.0,4e-05]
[1741411767853,0.3563082,86142.0,86141.0,4e-05]
[1741411768454,0.1161177,86135.0,86134.0,0.10593455]
[1741411768655,0.0580579,86137.0,86134.0,0.10593455]
[1741411769054,0.1265,86136.0,86134.0,0.10593455]
[1741411769255,0.1161177,86135.0,86134.0,0.10593455]
[1741411770273,0.1161177,86135.0,86134.0,0.04812239]
[1741411772766,0.1265,86136.0,86133.0,0.20774129]
[1741411773060,0.244319,86134.0,86133.0,0.20774129]
[1741411773267,0.244319,86134.0,86133.0,0.14992913]
[1741411773456,0.244319,86134.0,86133.0,0.1161603]
[1741411774367,0.244319,86134.0,86133.0,4e-05]
[1741411775663,0.244319,86134.0,86131.0,0.00886048]
[1741411775664,0.1161217,86132.0,86129.0,0.7322]
[1741411775860,0.1161244,86130.0,86129.0,0.73068]
[1741411776273,0.1161244,86130.0,86129.0,0.81207746]
[1741411776471,0.1161244,86130.0,86129.0,0.7542653]
[1741411777169,0.17428289,86130.0,86129.0,0.76298298]
[1741411778966,0.17428289,86130.0,86129.0,0.09011514]
[1741411779467,0.17428289,86130.0,86129.0,0.03230298]
[1741411780869,0.30248289,86130.0,86129.0,0.00871768]